[Event "*** Titled Tuesday Blitz"]
[Site "Chess.com"]
[Date "2021.04.27"]
[Round "4"]
[White "KyrgyzFighter"]
[Black "alexrustemov"]
[Result "0-1"]
[WhiteElo "2410"]
[BlackElo "2593"]
[TimeControl "180+1"]
[EndTime "10:39:06 PDT"]
[Termination "alexrustemov won by resignation"]

1. c4 {[%clk 0:03:00.9]} 1... g6 {[%clk 0:02:58.5]} 2. Nc3 {[%clk 0:03:00.4]}
2... Bg7 {[%clk 0:02:58.2]} 3. d4 {[%clk 0:03:01.1]} 3... c5 {[%clk 0:02:57.6]}
4. d5 {[%clk 0:03:01.5]} 4... Bxc3+ {[%clk 0:02:56.9]} 5. bxc3 {[%clk
0:03:02.4]} 5... f5 {[%clk 0:02:57.3]} 6. e4 {[%clk 0:03:02.7]} 6... fxe4 {[%clk
0:02:54.8]} 7. f3 {[%clk 0:03:03]} 7... e5 {[%clk 0:02:54.6]} 8. Nh3 {[%clk
0:02:35.8]} 8... d6 {[%clk 0:02:54.2]} 9. Nf2 {[%clk 0:02:29.5]} 9... Nf6 {[%clk
0:02:39.8]} 10. fxe4 {[%clk 0:02:28.6]} 10... h6 {[%clk 0:02:38.7]} 11. Be2
{[%clk 0:02:27.4]} 11... Qe7 {[%clk 0:02:36.4]} 12. O-O {[%clk 0:02:26.3]} 12...
Nbd7 {[%clk 0:02:28.4]} 13. Qd3 {[%clk 0:02:12.4]} 13... Kd8 {[%clk 0:02:25.6]}
14. Qg3 {[%clk 0:02:08]} 14... Qg7 {[%clk 0:02:24.9]} 15. Rb1 {[%clk 0:01:49.6]}
15... Kc7 {[%clk 0:02:24.1]} 16. Qd3 {[%clk 0:01:41]} 16... b6 {[%clk
0:02:21.2]} 17. a4 {[%clk 0:01:39.8]} 17... a5 {[%clk 0:02:20.8]} 18. Qc2 {[%clk
0:01:38.6]} 18... Ba6 {[%clk 0:02:18.7]} 19. Qb3 {[%clk 0:01:33.9]} 19... Rab8
{[%clk 0:02:01.9]} 20. Ng4 {[%clk 0:01:32.7]} 20... Nxe4 {[%clk 0:01:56.4]} 21.
Qc2 {[%clk 0:00:33.7]} 21... Nef6 {[%clk 0:01:55]} 22. Ne3 {[%clk 0:00:33.9]}
22... Rbf8 {[%clk 0:01:49.2]} 23. Bd3 {[%clk 0:00:33.6]} 23... Rhg8 {[%clk
0:01:43.1]} 24. Bd2 {[%clk 0:00:31.9]} 24... Nh5 {[%clk 0:01:40.5]} 25. Ng4
{[%clk 0:00:29.2]} 25... Nf4 {[%clk 0:01:38.6]} 26. g3 {[%clk 0:00:24.1]} 26...
Nxd3 {[%clk 0:01:37.4]} 27. Bxh6 {[%clk 0:00:21.4]} 27... Rxf1+ {[%clk
0:01:26.3]} 28. Rxf1 {[%clk 0:00:21.7]} 28... Qe7 {[%clk 0:01:19.8]} 29. Qxd3
{[%clk 0:00:22]} 29... e4 {[%clk 0:01:19.6]} 30. Qe2 {[%clk 0:00:21.6]} 30... g5
{[%clk 0:01:17.6]} 31. Rf5 {[%clk 0:00:19.5]} 31... Rg6 {[%clk 0:01:08.6]} 32.
Qf2 {[%clk 0:00:19.1]} 32... e3 {[%clk 0:01:02.6]} 33. Qe2 {[%clk 0:00:19.1]}
33... Qe4 {[%clk 0:01:01.1]} 34. Rf7 {[%clk 0:00:17.6]} 34... Bxc4 {[%clk
0:00:59.7]} 35. Qxe3 {[%clk 0:00:09.7]} 35... Qxg4 {[%clk 0:00:59.3]} 36. Qe8
{[%clk 0:00:06.1]} 36... Rxh6 {[%clk 0:00:49.7]} 37. Qa8 {[%clk 0:00:02.6]}
37... Qd1+ {[%clk 0:00:48.2]} 38. Kg2 {[%clk 0:00:03.1]} 38... Qe2+ {[%clk
0:00:47.1]} 39. Rf2 {[%clk 0:00:04]} 39... Rxh2+ {[%clk 0:00:46.8]} 40. Kxh2
{[%clk 0:00:04.6]} 40... Qxf2+ {[%clk 0:00:47]} 41. Kh3 {[%clk 0:00:05.5]} 41...
Qf5+ {[%clk 0:00:44]} 42. Kg2 {[%clk 0:00:05.6]} 0-1

[Event "*** Titled Tuesday Blitz"]
[Site "Chess.com"]
[Date "2021.04.27"]
[Round "4"]
[White "annacramling"]
[Black "starplatinum2030"]
[Result "0-1"]
[WhiteElo "2077"]
[BlackElo "2297"]
[TimeControl "180+1"]
[EndTime "10:39:06 PDT"]
[Termination "starplatinum2030 won by resignation"]

1. d4 {[%clk 0:03:00.9]} 1... Nf6 {[%clk 0:02:58.5]} 2. c4 {[%clk 0:03:00.8]}
2... e6 {[%clk 0:02:58.2]} 3. Nc3 {[%clk 0:03:01.4]} 3... Bb4 {[%clk 0:02:56.8]}
4. Qc2 {[%clk 0:02:55.6]} 4... O-O {[%clk 0:02:55]} 5. e4 {[%clk 0:02:55.6]}
5... Bxc3+ {[%clk 0:02:51.8]} 6. bxc3 {[%clk 0:02:55.3]} 6... d6 {[%clk
0:02:52.1]} 7. e5 {[%clk 0:02:44.3]} 7... dxe5 {[%clk 0:02:44.8]} 8. dxe5 {[%clk
0:02:45.2]} 8... Ng4 {[%clk 0:02:41.1]} 9. Nf3 {[%clk 0:02:42.3]} 9... Nc6
{[%clk 0:02:38.4]} 10. Bf4 {[%clk 0:02:41.8]} 10... f6 {[%clk 0:02:26.3]} 11.
exf6 {[%clk 0:02:17.8]} 11... Qxf6 {[%clk 0:02:27.2]} 12. Bg3 {[%clk 0:02:05.4]}
12... e5 {[%clk 0:02:00.6]} 13. Bd3 {[%clk 0:01:50.5]} 13... Qh6 {[%clk
0:01:47.5]} 14. O-O {[%clk 0:01:43.6]} 14... e4 {[%clk 0:01:38.6]} 15. Bxe4
{[%clk 0:01:42.6]} 15... Nf6 {[%clk 0:01:38.6]} 16. Bd5+ {[%clk 0:01:30.3]}
16... Kh8 {[%clk 0:01:26.8]} 17. Bxc7 {[%clk 0:01:27.5]} 17... Bg4 {[%clk
0:01:26.4]} 18. Ne5 {[%clk 0:01:10.6]} 18... Nxe5 {[%clk 0:00:46.1]} 19. Bxe5
{[%clk 0:01:11.5]} 19... Qh5 {[%clk 0:00:35.6]} 20. Bd6 {[%clk 0:00:53.4]} 20...
Nxd5 {[%clk 0:00:20]} 21. Bxf8 {[%clk 0:00:48.6]} 21... Nf4 {[%clk 0:00:19.3]}
22. f3 {[%clk 0:00:26.5]} 22... Bf5 {[%clk 0:00:12.8]} 23. Qd2 {[%clk
0:00:21.1]} 23... Qg5 {[%clk 0:00:13]} 24. Bxg7+ {[%clk 0:00:09.7]} 24... Kxg7
{[%clk 0:00:11.9]} 25. Qd4+ {[%clk 0:00:08.3]} 25... Kh6 {[%clk 0:00:12.1]} 26.
g3 {[%clk 0:00:02.2]} 26... Ne2+ {[%clk 0:00:11.6]} 27. Kh1 {[%clk 0:00:02.1]}
27... Nxd4 {[%clk 0:00:12.5]} 0-1

[Event "*** Titled Tuesday Blitz"]
[Site "Chess.com"]
[Date "2021.04.27"]
[Round "4"]
[White "harlem4brew"]
[Black "SF-96"]
[Result "1-0"]
[WhiteElo "2395"]
[BlackElo "2591"]
[TimeControl "180+1"]
[EndTime "10:39:10 PDT"]
[Termination "harlem4brew won by resignation"]

1. e4 {[%clk 0:03:00.9]} 1... e5 {[%clk 0:02:59.3]} 2. Nf3 {[%clk 0:03:00.9]}
2... Nc6 {[%clk 0:02:59.7]} 3. d4 {[%clk 0:03:00.1]} 3... exd4 {[%clk
0:02:59.9]} 4. Nxd4 {[%clk 0:03:01]} 4... Bc5 {[%clk 0:03:00.2]} 5. Be3 {[%clk
0:03:00.3]} 5... Qf6 {[%clk 0:03:00]} 6. c3 {[%clk 0:02:58]} 6... Nge7 {[%clk
0:03:00.2]} 7. Bc4 {[%clk 0:02:54.1]} 7... O-O {[%clk 0:02:56.6]} 8. O-O {[%clk
0:02:54.1]} 8... Bb6 {[%clk 0:02:46.3]} 9. a4 {[%clk 0:02:51.1]} 9... a6 {[%clk
0:02:27.9]} 10. Nxc6 {[%clk 0:02:47.4]} 10... Qxc6 {[%clk 0:02:28.3]} 11. Bxb6
{[%clk 0:02:44.5]} 11... Qxc4 {[%clk 0:02:22.2]} 12. Nd2 {[%clk 0:02:41.2]}
12... Qc6 {[%clk 0:02:18.5]} 13. Bd4 {[%clk 0:02:39.1]} 13... d5 {[%clk
0:02:12.8]} 14. exd5 {[%clk 0:02:37.6]} 14... Nxd5 {[%clk 0:02:10.5]} 15. Nf3
{[%clk 0:02:37.2]} 15... Bg4 {[%clk 0:02:06.2]} 16. Ne5 {[%clk 0:02:29.2]} 16...
Bxd1 {[%clk 0:01:58.5]} 17. Nxc6 {[%clk 0:02:28.3]} 17... Bb3 {[%clk 0:01:38.1]}
18. Na5 {[%clk 0:02:24]} 18... Bc2 {[%clk 0:01:38.6]} 19. Nxb7 {[%clk 0:02:20]}
19... Rfb8 {[%clk 0:01:34.7]} 20. Nc5 {[%clk 0:02:08.7]} 20... Rxb2 {[%clk
0:01:35.1]} 21. Rfc1 {[%clk 0:01:56.3]} 21... Nf4 {[%clk 0:01:26.6]} 22. Re1
{[%clk 0:01:49.6]} 22... Bf5 {[%clk 0:01:13.4]} 23. Nxa6 {[%clk 0:01:37.5]}
23... Ne2+ {[%clk 0:01:02.3]} 24. Rxe2 {[%clk 0:01:30.1]} 24... Rxe2 {[%clk
0:01:03.2]} 25. Nxc7 {[%clk 0:01:29.8]} 25... Rc8 {[%clk 0:01:03.5]} 26. Nd5
{[%clk 0:01:27.8]} 26... Rce8 {[%clk 0:01:00.2]} 27. Ne3 {[%clk 0:01:25.5]}
27... Bd3 {[%clk 0:00:56.3]} 28. g3 {[%clk 0:01:22]} 28... f5 {[%clk 0:00:51.6]}
29. a5 {[%clk 0:01:15.4]} 29... g5 {[%clk 0:00:40.2]} 30. a6 {[%clk 0:00:44.9]}
30... f4 {[%clk 0:00:35.4]} 31. a7 {[%clk 0:00:40.2]} 31... Ra8 {[%clk
0:00:13.2]} 32. Nd5 {[%clk 0:00:37]} 32... Be4 {[%clk 0:00:10.9]} 33. Nf6+
{[%clk 0:00:30]} 33... Kf7 {[%clk 0:00:10.7]} 34. Nxe4 {[%clk 0:00:28.7]} 34...
Rxe4 {[%clk 0:00:11.6]} 35. gxf4 {[%clk 0:00:28.8]} 35... gxf4 {[%clk
0:00:10.5]} 36. Kg2 {[%clk 0:00:29.3]} 36... Ke6 {[%clk 0:00:08.1]} 37. Kf3
{[%clk 0:00:29.2]} 37... Kd5 {[%clk 0:00:06.2]} 38. Ra5+ {[%clk 0:00:29]} 1-0

[Event "*** Titled Tuesday Blitz"]
[Site "Chess.com"]
[Date "2021.04.27"]
[Round "4"]
[White "TigrVShlyape"]
[Black "Susal_De_Silva"]
[Result "0-1"]
[WhiteElo "2823"]
[BlackElo "2632"]
[TimeControl "180+1"]
[EndTime "10:39:11 PDT"]
[Termination "Susal_De_Silva won on time"]

1. e4 {[%clk 0:03:00.9]} 1... e5 {[%clk 0:02:59.7]} 2. Nf3 {[%clk 0:03:00.3]}
2... Nc6 {[%clk 0:03:00.1]} 3. Bb5 {[%clk 0:02:59.5]} 3... a6 {[%clk 0:03:00.3]}
4. Ba4 {[%clk 0:02:59.4]} 4... Nf6 {[%clk 0:03:00.5]} 5. O-O {[%clk 0:02:59.5]}
5... Be7 {[%clk 0:03:00.7]} 6. Re1 {[%clk 0:02:59.6]} 6... b5 {[%clk 0:03:01.3]}
7. Bb3 {[%clk 0:02:59.8]} 7... d6 {[%clk 0:03:02.2]} 8. c3 {[%clk 0:03:00.1]}
8... O-O {[%clk 0:03:02.6]} 9. d4 {[%clk 0:03:00.3]} 9... Bg4 {[%clk 0:03:01.4]}
10. d5 {[%clk 0:03:00.4]} 10... Na5 {[%clk 0:03:01.7]} 11. Bc2 {[%clk
0:03:00.8]} 11... c5 {[%clk 0:02:59.7]} 12. Nbd2 {[%clk 0:02:56.4]} 12... Bh5
{[%clk 0:02:53.5]} 13. b3 {[%clk 0:02:52.9]} 13... Rb8 {[%clk 0:02:53]} 14. Nf1
{[%clk 0:02:50.3]} 14... Nb7 {[%clk 0:02:46]} 15. Ng3 {[%clk 0:02:46.6]} 15...
Bg6 {[%clk 0:02:45.9]} 16. b4 {[%clk 0:02:40.1]} 16... a5 {[%clk 0:02:42.9]} 17.
a3 {[%clk 0:02:37.5]} 17... Qc7 {[%clk 0:02:41.2]} 18. Nh4 {[%clk 0:02:19.8]}
18... Rfc8 {[%clk 0:02:29.3]} 19. Nxg6 {[%clk 0:02:17.7]} 19... hxg6 {[%clk
0:02:30.2]} 20. Bd3 {[%clk 0:02:15.9]} 20... c4 {[%clk 0:01:33.9]} 21. Be2
{[%clk 0:02:07.9]} 21... Nd8 {[%clk 0:01:30.6]} 22. h4 {[%clk 0:02:03.2]} 22...
Nd7 {[%clk 0:01:23.8]} 23. h5 {[%clk 0:02:02]} 23... gxh5 {[%clk 0:01:24.7]} 24.
Bxh5 {[%clk 0:01:58.6]} 24... g6 {[%clk 0:01:23.3]} 25. Bg4 {[%clk 0:01:57.2]}
25... Ra8 {[%clk 0:01:17.7]} 26. Be3 {[%clk 0:01:55.2]} 26... Rcb8 {[%clk
0:01:16.4]} 27. Qd2 {[%clk 0:01:45.1]} 27... Bf6 {[%clk 0:01:11.6]} 28. Nf1
{[%clk 0:01:40.3]} 28... Bg7 {[%clk 0:01:11.5]} 29. Nh2 {[%clk 0:01:38.5]} 29...
Nf6 {[%clk 0:01:09.4]} 30. Bf3 {[%clk 0:01:38.1]} 30... Qd7 {[%clk 0:01:07.3]}
31. g3 {[%clk 0:01:36.6]} 31... Nh7 {[%clk 0:01:06.7]} 32. Kg2 {[%clk
0:01:35.6]} 32... f6 {[%clk 0:01:07]} 33. Rh1 {[%clk 0:01:33.7]} 33... Nf7
{[%clk 0:01:06.6]} 34. Be2 {[%clk 0:01:23.6]} 34... f5 {[%clk 0:00:59.9]} 35. f3
{[%clk 0:01:21.6]} 35... Rf8 {[%clk 0:00:55.5]} 36. Nf1 {[%clk 0:00:59.8]} 36...
f4 {[%clk 0:00:43.8]} 37. Bf2 {[%clk 0:00:57.4]} 37... Nfg5 {[%clk 0:00:40.7]}
38. Nh2 {[%clk 0:00:54.9]} 38... Qh3+ {[%clk 0:00:36.9]} 39. Kg1 {[%clk
0:00:54.8]} 39... fxg3 {[%clk 0:00:37.1]} 0-1

[Event "*** Titled Tuesday Blitz"]
[Site "Chess.com"]
[Date "2021.04.27"]
[Round "4"]
[White "Alex_Terzi"]
[Black "OlifantCZ"]
[Result "1-0"]
[WhiteElo "2450"]
[BlackElo "2258"]
[TimeControl "180+1"]
[EndTime "10:39:11 PDT"]
[Termination "Alex_Terzi won by resignation"]

1. e4 {[%clk 0:03:00.9]} 1... e6 {[%clk 0:02:59.5]} 2. d4 {[%clk 0:03:01]} 2...
d5 {[%clk 0:02:59.7]} 3. Bd3 {[%clk 0:02:59.9]} 3... dxe4 {[%clk 0:02:58.8]} 4.
Bxe4 {[%clk 0:03:00.8]} 4... Nf6 {[%clk 0:02:59.1]} 5. Bf3 {[%clk 0:03:01.3]}
5... Nbd7 {[%clk 0:02:58.2]} 6. Ne2 {[%clk 0:03:01.1]} 6... c5 {[%clk
0:02:56.3]} 7. Be3 {[%clk 0:03:00.4]} 7... Be7 {[%clk 0:02:56.6]} 8. O-O {[%clk
0:02:59.6]} 8... O-O {[%clk 0:02:57.1]} 9. c4 {[%clk 0:02:57.2]} 9... cxd4
{[%clk 0:02:54]} 10. Nxd4 {[%clk 0:02:54.8]} 10... Ne5 {[%clk 0:02:50.7]} 11.
Be2 {[%clk 0:02:54.4]} 11... a6 {[%clk 0:02:38.5]} 12. Nc3 {[%clk 0:02:53.7]}
12... Qc7 {[%clk 0:02:38.2]} 13. Qb3 {[%clk 0:02:42.5]} 13... Bd7 {[%clk
0:02:29.4]} 14. Rfd1 {[%clk 0:02:40.8]} 14... Nc6 {[%clk 0:02:28.2]} 15. Bf3
{[%clk 0:02:36.8]} 15... Nxd4 {[%clk 0:02:21.2]} 16. Bxd4 {[%clk 0:02:36.4]}
16... Bc6 {[%clk 0:02:20.9]} 17. Bxc6 {[%clk 0:02:23.3]} 17... Qxc6 {[%clk
0:02:20]} 18. Qa4 {[%clk 0:02:23.6]} 18... Qc7 {[%clk 0:02:12.5]} 19. Rac1
{[%clk 0:02:16.6]} 19... Rfd8 {[%clk 0:01:58.3]} 20. h3 {[%clk 0:02:06.7]} 20...
Rd7 {[%clk 0:01:42.6]} 21. Be3 {[%clk 0:02:05.9]} 21... Rad8 {[%clk 0:01:40.2]}
22. Rxd7 {[%clk 0:01:56.6]} 22... Rxd7 {[%clk 0:01:37]} 23. Rd1 {[%clk
0:01:56.7]} 23... Rxd1+ {[%clk 0:01:36.3]} 24. Nxd1 {[%clk 0:01:57.6]} 24... Ne4
{[%clk 0:01:35.5]} 25. Qe8+ {[%clk 0:01:22.7]} 25... Bf8 {[%clk 0:01:35.3]} 26.
b3 {[%clk 0:01:16.4]} 26... Qe7 {[%clk 0:01:24]} 27. Qc8 {[%clk 0:01:04]} 27...
h6 {[%clk 0:01:16.3]} 28. f3 {[%clk 0:00:59.2]} 28... Nd6 {[%clk 0:01:15.2]} 29.
Qb8 {[%clk 0:00:57.6]} 29... Qe8 {[%clk 0:01:11.4]} 30. Qxe8 {[%clk 0:00:54.2]}
30... Nxe8 {[%clk 0:01:10.5]} 31. Nc3 {[%clk 0:00:54.9]} 31... f6 {[%clk
0:01:09.2]} 32. Kf2 {[%clk 0:00:51.2]} 32... Kf7 {[%clk 0:01:08.8]} 33. Ke2
{[%clk 0:00:49.7]} 33... e5 {[%clk 0:01:05.8]} 34. Ne4 {[%clk 0:00:48.7]} 34...
Ke6 {[%clk 0:01:03.9]} 35. Nc5+ {[%clk 0:00:48.8]} 35... Bxc5 {[%clk 0:01:03.5]}
36. Bxc5 {[%clk 0:00:49.7]} 36... g5 {[%clk 0:01:03.3]} 37. g4 {[%clk
0:00:45.9]} 37... f5 {[%clk 0:01:00.1]} 38. Bf8 {[%clk 0:00:44.1]} 38... e4
{[%clk 0:00:44.1]} 39. fxe4 {[%clk 0:00:35.1]} 39... fxe4 {[%clk 0:00:31]} 40.
Ke3 {[%clk 0:00:34.6]} 40... Kf7 {[%clk 0:00:20.4]} 41. Bxh6 {[%clk 0:00:32]}
41... Kg6 {[%clk 0:00:18.9]} 42. Bf8 {[%clk 0:00:31.4]} 42... Nf6 {[%clk
0:00:19]} 43. Be7 {[%clk 0:00:29.3]} 43... Nd7 {[%clk 0:00:17.6]} 44. Kxe4
{[%clk 0:00:28.2]} 1-0

[Event "*** Titled Tuesday Blitz"]
[Site "Chess.com"]
[Date "2021.04.27"]
[Round "4"]
[White "Romadk"]
[Black "WisdomGame"]
[Result "0-1"]
[WhiteElo "2325"]
[BlackElo "2126"]
[TimeControl "180+1"]
[EndTime "10:39:11 PDT"]
[Termination "WisdomGame won by resignation"]

1. d4 {[%clk 0:03:00.7]} 1... Nf6 {[%clk 0:03:00]} 2. Nf3 {[%clk 0:03:00.9]}
2... e6 {[%clk 0:03:00.2]} 3. g3 {[%clk 0:03:00.3]} 3... d5 {[%clk 0:03:00]} 4.
Bg2 {[%clk 0:03:00]} 4... Be7 {[%clk 0:03:00.5]} 5. c4 {[%clk 0:03:00.4]} 5...
O-O {[%clk 0:03:00.6]} 6. Nc3 {[%clk 0:03:01.3]} 6... Nbd7 {[%clk 0:02:57]} 7.
Qd3 {[%clk 0:03:00.6]} 7... b6 {[%clk 0:02:56.4]} 8. b3 {[%clk 0:03:00.2]} 8...
Ba6 {[%clk 0:02:55.4]} 9. Bb2 {[%clk 0:03:00]} 9... c5 {[%clk 0:02:54]} 10. O-O
{[%clk 0:03:00.4]} 10... cxd4 {[%clk 0:02:53.9]} 11. Nxd4 {[%clk 0:02:58.8]}
11... Nc5 {[%clk 0:02:53.9]} 12. Qc2 {[%clk 0:02:56.2]} 12... dxc4 {[%clk
0:02:51.7]} 13. Bxa8 {[%clk 0:02:52.9]} 13... Qxa8 {[%clk 0:02:52.6]} 14. bxc4
{[%clk 0:02:48.5]} 14... Bxc4 {[%clk 0:02:53.5]} 15. f3 {[%clk 0:02:08.6]} 15...
Rc8 {[%clk 0:02:52.2]} 16. Qd2 {[%clk 0:02:05.9]} 16... Rd8 {[%clk 0:02:47.3]}
17. Qe3 {[%clk 0:02:02]} 17... Na6 {[%clk 0:02:25.4]} 18. Nd1 {[%clk 0:01:28]}
18... Bc5 {[%clk 0:02:20.9]} 19. Nf2 {[%clk 0:01:21.9]} 19... Nb4 {[%clk
0:02:01.7]} 20. Rad1 {[%clk 0:01:09.4]} 20... Nc2 {[%clk 0:01:48.8]} 21. Qf4
{[%clk 0:01:06.1]} 21... Nd5 {[%clk 0:01:24.4]} 22. Qg4 {[%clk 0:00:59.6]} 22...
Nce3 {[%clk 0:01:21.7]} 23. Qh4 {[%clk 0:00:56.5]} 23... Be7 {[%clk 0:01:18.4]}
24. Qh5 {[%clk 0:00:52.5]} 24... Nxf1 {[%clk 0:01:13.2]} 25. Rxf1 {[%clk
0:00:48.6]} 25... Nf6 {[%clk 0:01:09.1]} 26. Qg5 {[%clk 0:00:46.9]} 26... Qd5
{[%clk 0:00:59.7]} 27. Qc1 {[%clk 0:00:45.1]} 27... Bc5 {[%clk 0:00:49.3]} 28.
e3 {[%clk 0:00:41.4]} 28... Bxf1 {[%clk 0:00:47.7]} 29. Qxf1 {[%clk 0:00:42.3]}
29... Qxa2 {[%clk 0:00:44.4]} 30. Nd3 {[%clk 0:00:39.6]} 30... Nd5 {[%clk
0:00:37.3]} 31. Bc1 {[%clk 0:00:28.1]} 31... Nxe3 {[%clk 0:00:31.1]} 32. Bxe3
{[%clk 0:00:28]} 32... Bxd4 {[%clk 0:00:30.8]} 33. Bxd4 {[%clk 0:00:27]} 33...
Rxd4 {[%clk 0:00:31.7]} 34. Nf4 {[%clk 0:00:27.5]} 34... Qc2 {[%clk 0:00:22.5]}
35. Ng2 {[%clk 0:00:23]} 35... Rd1 {[%clk 0:00:19.1]} 36. Ne1 {[%clk 0:00:23.9]}
36... Qd2 {[%clk 0:00:18.5]} 37. Nd3 {[%clk 0:00:20.6]} 37... Rxf1+ {[%clk
0:00:17.6]} 38. Kxf1 {[%clk 0:00:20.6]} 38... Qxd3+ {[%clk 0:00:18.5]} 0-1

[Event "*** Titled Tuesday Blitz"]
[Site "Chess.com"]
[Date "2021.04.27"]
[Round "4"]
[White "GelmanAlexander"]
[Black "Matols"]
[Result "1-0"]
[WhiteElo "2601"]
[BlackElo "2262"]
[TimeControl "180+1"]
[EndTime "10:39:14 PDT"]
[Termination "GelmanAlexander won on time"]

1. d4 {[%clk 0:03:00.9]} 1... Nf6 {[%clk 0:02:59.4]} 2. Nc3 {[%clk 0:03:00.2]}
2... d5 {[%clk 0:02:58.5]} 3. Bf4 {[%clk 0:02:59.7]} 3... e6 {[%clk 0:02:57.1]}
4. Nb5 {[%clk 0:02:59.5]} 4... Na6 {[%clk 0:02:56.5]} 5. e3 {[%clk 0:02:59.7]}
5... Be7 {[%clk 0:02:55.7]} 6. g4 {[%clk 0:02:59.4]} 6... c6 {[%clk 0:02:52.2]}
7. Nc3 {[%clk 0:02:59.2]} 7... Nc7 {[%clk 0:02:51.5]} 8. g5 {[%clk 0:02:58.8]}
8... Ne4 {[%clk 0:02:49.4]} 9. Nxe4 {[%clk 0:02:47.3]} 9... dxe4 {[%clk
0:02:48.8]} 10. h4 {[%clk 0:02:47.6]} 10... Nd5 {[%clk 0:02:39.6]} 11. Bg3
{[%clk 0:02:47.1]} 11... Qb6 {[%clk 0:02:17.3]} 12. Bg2 {[%clk 0:02:16.1]} 12...
Qxb2 {[%clk 0:02:11.8]} 13. Ne2 {[%clk 0:02:10.4]} 13... Bb4+ {[%clk 0:01:18.8]}
14. Kf1 {[%clk 0:02:10]} 14... Qa3 {[%clk 0:01:13.4]} 15. Bxe4 {[%clk
0:01:56.8]} 15... Bd7 {[%clk 0:01:10.6]} 16. Rb1 {[%clk 0:01:41.2]} 16... a5
{[%clk 0:00:44.8]} 17. Rb3 {[%clk 0:01:11.4]} 17... Qxa2 {[%clk 0:00:41.9]} 18.
c3 {[%clk 0:01:01.8]} 18... Be7 {[%clk 0:00:32.6]} 19. Rxb7 {[%clk 0:00:56.6]}
19... a4 {[%clk 0:00:24.1]} 20. Bd3 {[%clk 0:00:45.3]} 20... a3 {[%clk
0:00:20.2]} 21. e4 {[%clk 0:00:32.1]} 21... Bc8 {[%clk 0:00:12.3]} 22. Rb3
{[%clk 0:00:22.9]} 22... Qxb3 {[%clk 0:00:09.2]} 23. Qxb3 {[%clk 0:00:21.3]}
23... a2 {[%clk 0:00:09.2]} 24. Kg2 {[%clk 0:00:15.8]} 24... a1=Q {[%clk
0:00:08.8]} 25. Rxa1 {[%clk 0:00:16.5]} 25... Rxa1 {[%clk 0:00:08.8]} 26. exd5
{[%clk 0:00:17.1]} 26... exd5 {[%clk 0:00:08.9]} 27. Qb6 {[%clk 0:00:12.4]}
27... O-O {[%clk 0:00:08]} 28. Qxc6 {[%clk 0:00:12.8]} 28... Bg4 {[%clk
0:00:06.8]} 29. Qxd5 {[%clk 0:00:10.8]} 29... Rfa8 {[%clk 0:00:05.7]} 30. Nf4
{[%clk 0:00:08.1]} 1-0

[Event "*** Titled Tuesday Blitz"]
[Site "Chess.com"]
[Date "2021.04.27"]
[Round "4"]
[White "MichailovM"]
[Black "Mazanchenko_Dmitry"]
[Result "1-0"]
[WhiteElo "2456"]
[BlackElo "2271"]
[TimeControl "180+1"]
[EndTime "10:39:14 PDT"]
[Termination "MichailovM won on time"]

1. d4 {[%clk 0:03:00.9]} 1... g6 {[%clk 0:02:57.5]} 2. Nf3 {[%clk 0:03:00.4]}
2... Bg7 {[%clk 0:02:57.9]} 3. c4 {[%clk 0:03:01]} 3... d6 {[%clk 0:02:58.4]} 4.
Nc3 {[%clk 0:03:01.5]} 4... Bg4 {[%clk 0:02:58.1]} 5. Qb3 {[%clk 0:02:54.3]}
5... Bxf3 {[%clk 0:02:57.1]} 6. gxf3 {[%clk 0:02:54.6]} 6... b6 {[%clk
0:02:57.7]} 7. e3 {[%clk 0:02:54.4]} 7... e5 {[%clk 0:02:57.6]} 8. Ne2 {[%clk
0:02:47]} 8... Nc6 {[%clk 0:02:51.7]} 9. Qb5 {[%clk 0:02:44.8]} 9... Qd7 {[%clk
0:02:51.5]} 10. Bh3 {[%clk 0:02:44.1]} 10... f5 {[%clk 0:02:50.9]} 11. d5 {[%clk
0:02:31.2]} 11... Na5 {[%clk 0:02:50.3]} 12. Bd2 {[%clk 0:02:27.8]} 12... Nb7
{[%clk 0:02:25.3]} 13. Qxd7+ {[%clk 0:02:18.5]} 13... Kxd7 {[%clk 0:02:24.7]}
14. e4 {[%clk 0:02:18.9]} 14... Ne7 {[%clk 0:02:23.3]} 15. Rg1 {[%clk
0:01:54.8]} 15... Raf8 {[%clk 0:02:03.6]} 16. Ng3 {[%clk 0:01:47.7]} 16... Rhg8
{[%clk 0:01:39.3]} 17. Ke2 {[%clk 0:01:11.3]} 17... Ke8 {[%clk 0:01:26.6]} 18.
b4 {[%clk 0:01:10.3]} 18... Nd8 {[%clk 0:00:58.3]} 19. a4 {[%clk 0:01:08.4]}
19... fxe4 {[%clk 0:00:24.1]} 20. fxe4 {[%clk 0:01:07]} 20... Nf7 {[%clk
0:00:24]} 21. a5 {[%clk 0:01:02.5]} 21... Bh6 {[%clk 0:00:22.8]} 22. Bxh6 {[%clk
0:00:57.5]} 22... Nxh6 {[%clk 0:00:23.7]} 23. axb6 {[%clk 0:00:57.8]} 23... axb6
{[%clk 0:00:12.5]} 24. Ra7 {[%clk 0:00:57.2]} 24... Kf7 {[%clk 0:00:12.9]} 25.
Rxc7 {[%clk 0:00:55.8]} 25... Kf6 {[%clk 0:00:05]} 26. Be6 {[%clk 0:00:46.9]}
26... Rh8 {[%clk 0:00:04.4]} 27. Ra1 {[%clk 0:00:44.7]} 27... Rd8 {[%clk
0:00:04.5]} 28. Raa7 {[%clk 0:00:44.4]} 28... Rhe8 {[%clk 0:00:04.4]} 29. Rcb7
{[%clk 0:00:38.6]} 29... Rb8 {[%clk 0:00:02.4]} 30. Ke3 {[%clk 0:00:20.5]} 30...
Rxb7 {[%clk 0:00:01.8]} 31. Rxb7 {[%clk 0:00:20.3]} 31... g5 {[%clk 0:00:02.4]}
32. Rxb6 {[%clk 0:00:20.5]} 32... Rd8 {[%clk 0:00:01.8]} 33. c5 {[%clk
0:00:20.6]} 33... g4 {[%clk 0:00:01.4]} 34. cxd6 {[%clk 0:00:20.3]} 1-0